[Event "Niedersachsen-ch 2020"]
[Site "Verden-Aller"]
[Date "2020.01.03"]
[Round "3.1"]
[White "Schulze, Torben"]
[Black "Abel, Dennes"]
[Result "0-1"]
[ECO "B12"]
[WhiteElo "2266"]
[BlackElo "2463"]
[Annotator "ChessBase"]
[PlyCount "164"]
[EventDate "2020.01.02"]
[EventType "swiss"]
[EventCountry "GER"]
[SourceTitle "playchess.com"]
[Source "ChessBase"]
[SourceQuality "1"]
[TimeControl "40/5400+30:1800+30"]

1. e4 {[%emt 0:00:00]} c6 {[%emt 0:00:43]} 2. d4 {[%emt 0:00:00]} d5 {[%emt 0:00:07]} 3. e5 {[%emt 0:00:00]} Bf5 {[%emt 0:00:10]} 4. h4 {[%emt 0:00:20]} Qc7 {[%emt 0:00:10]} 5. c4 {[%emt 0:11:08]} e6 {[%emt 0:00:51]} 6. Nc3 {[%emt 0:00:09]} h6 {[%emt 0:00:33]} 7. Be3 {[%emt 0:02:43]} Ne7 {[%emt 0:00:44]} 8. Rc1 {[%emt 0:02:04]} dxc4 {[%emt 0:06:02]} 9. Bxc4 {[%emt 0:01:12]} Nd7 {[%emt 0:01:09]} 10. Nge2 {[%emt 0:06:12]} a6 {[%emt 0:02:58]} 11. Ng3 {[%emt 0:06:41]} Bh7 {[%emt 0:02:15]} 12. f4 {[%emt 0:04:31]} Nb6 {[%emt 0:04:27]} 13. Bb3 {[%emt 0:04:52]} O-O-O {[%emt 0:02:41]} 14. Qf3 {[%emt 0:03:22]} Kb8 {[%emt 0:06:35]} 15. O-O {[%emt 0:00:49]} Nf5 {[%emt 0:09:59]} 16. Nxf5 {[%emt 0:01:12]} Bxf5 {[%emt 0:00:06]} 17. Bf2 {[%emt 0:19:45]} h5 {[%emt 0:01:37]} 18. Ne4 {[%emt 0:01:06]} Bxe4 {[%emt 0:03:22]} 19. Qxe4 {[%emt 0:00:52]} g6 {[%emt 0:00:07]} 20. Rfd1 {[%emt 0:06:51]} Nd5 {[%emt 0:02:27]} 21. g3 {[%emt 0:00:46]} Bb4 {[%emt 0:01:19]} 22. Rd3 {[%emt 0:07:33]} Ba5 {[%emt 0:01:52]} 23. Bxd5 {[%emt 0:06:01]} Rxd5 {[%emt 0:01:40]} 24. Rc5 {[%emt 0:00:43]} Rhd8 {[%emt 0:02:35]} 25. Kg2 {[%emt 0:00:57]} Bb6 {[%emt 0:02:03]} 26. Rxd5 {[%emt 0:00:17]} Rxd5 {[%emt 0:00:45]} 27. Rc3 {[%emt 0:01:40]} Qd7 {[%emt 0:02:39]} 28. Rc4 {[%emt 0:01:57]} Rb5 {[%emt 0:01:44]} 29. b3 {[%emt 0:02:38]} Rd5 {[%emt 0:01:44]} 30. b4 {[%emt 0:02:53]} Ba7 {[%emt 0:01:17]} 31. a3 {[%emt 0:01:09]} Kc7 {[%emt 0:01:39]} 32. Kh2 {[%emt 0:03:43]} Qe7 {[%emt 0:04:38]} 33. Rc3 {[%emt 0:01:11]} Bb6 {[%emt 0:01:54]} 34. Rd3 {[%emt 0:00:53]} a5 {[%emt 0:01:07]} 35. Be1 {[%emt 0:00:32]} Qd7 {[%emt 0:01:14]} 36. Bc3 {[%emt 0:00:39]} Kd8 {[%emt 0:00:41]} 37. Kg2 {[%emt 0:00:35]} Ke8 {[%emt 0:00:36]} 38. Kh3 {[%emt 0:00:32]} Bd8 {[%emt 0:01:51]} 39. Rd1 {[%emt 0:00:30]} Kf8 {[%emt 0:02:48]} 40. Rb1 {[%emt 0:00:30]} axb4 {[%emt 0:04:15]} 41. axb4 {[%emt 0:02:47]} Bb6 {[%emt 0:01:21]} 42. Rd1 {[%emt 0:00:49]} Ke7 {[%emt 0:02:51]} 43. Rd2 {[%emt 0:02:26]} Kd8 {[%emt 0:01:18]} 44. Rd1 {[%emt 0:00:37]} Kc7 {[%emt 0:00:12]} 45. Rd2 {[%emt 0:00:43]} Rb5 {[%emt 0:02:04]} 46. g4 {[%emt 0:01:51]} hxg4+ {[%emt 0:00:27]} 47. Kxg4 {[%emt 0:00:01]} Rd5 {[%emt 0:00:36]} 48. Kg3 {[%emt 0:01:32]} Kb8 {[%emt 0:01:54]} 49. Rd1 {[%emt 0:01:43]} Qd8 {[%emt 0:01:47]} 50. Qe3 {[%emt 0:01:04]} Qh8 {[%emt 0:03:55]} 51. Qf3 {[%emt 0:02:06]} Bd8 {[%emt 0:01:42]} 52. Rh1 {[%emt 0:00:55]} Bb6 {[%emt 0:02:00]} 53. Rd1 {[%emt 0:00:11]} f5 {[%emt 0:02:13]} 54. Qd3 {[%emt 0:05:12]} Qh7 {[%emt 0:03:13]} 55. Qe2 {[%emt 0:02:40]} Bd8 {[%emt 0:01:42]} 56. Rh1 {[%emt 0:00:05]} Rd7 {[%emt 0:02:26]} 57. b5 {[%emt 0:01:07]} cxb5 {[%emt 0:03:26]} 58. Qxb5 {[%emt 0:00:16]} Rd5 {[%emt 0:00:47]} 59. Qe2 {[%emt 0:00:33]} Ba5 {[%emt 0:05:36]} 60. Bxa5 {[%emt 0:02:45]} Rxa5 {[%emt 0:00:05]} 61. Rd1 {[%emt 0:00:06]} Qd7 {[%emt 0:13:26]} 62. Qc4 {[%emt 0:01:23]} Ra3+ {[%emt 0:02:19]} 63. Kg2 {[%emt 0:01:21]} Ra5 {[%emt 0:04:22]} 64. Rb1 {[%emt 0:04:42]} Rd5 {[%emt 0:00:51]} 65. Rb4 {[%emt 0:00:12]} b5 {[%emt 0:01:33]} 66. Kf2 {[%emt 0:00:51]} Ka7 {[%emt 0:01:01]} 67. Qa2+ {[%emt 0:01:35]} Kb6 {[%emt 0:00:42]} 68. Ke3 {[%emt 0:01:34]} Qe7 {[%emt 0:00:46]} 69. Qa3 {[%emt 0:01:32]} Qxh4 {[%emt 0:00:39]} 70. Qa8 {[%emt 0:00:22]} Qg3+ {[%emt 0:02:05]} 71. Kd2 {[%emt 0:00:43]} Qxf4+ {[%emt 0:00:48]} 72. Kc3 {[%emt 0:00:39]} Qc1+ {[%emt 0:00:45]} 73. Kb3 {[%emt 0:00:57]} Qb1+ {[%emt 0:00:04]} 74. Kc3 {[%emt 0:00:09]} Qc1+ {[%emt 0:00:03]} 75. Kb3 {[%emt 0:00:01]} Qc7 {[%emt 0:00:38]} 76. Qe8 {[%emt 0:00:47]} Qc6 {[%emt 0:00:35]} 77. Qxg6 {[%emt 0:00:46]} Rd8 {[%emt 0:00:29]} 78. Qg1 {[%emt 0:00:38]} Qd5+ {[%emt 0:00:45]} 79. Kb2 {[%emt 0:00:33]} Ra8 {[%emt 0:00:09]} 80. Rb3 {[%emt 0:00:12]} Ra4 {[%emt 0:00:04]} 81. Rd3 {[%emt 0:02:03]} Qa2+ {[%emt 0:00:10]} 82. Kc3 {[%emt 0:00:14]} Rc4# {[%emt 0:00:05]} 0-1

[Event "Niedersachsen-ch 2020"]
[Site "Verden-Aller"]
[Date "2020.01.03"]
[Round "3.4"]
[White "Ermel, Dirk"]
[Black "Renner, Kai"]
[Result "1/2-1/2"]
[ECO "A10"]
[WhiteElo "2125"]
[BlackElo "2180"]
[Annotator "ChessBase"]
[PlyCount "129"]
[EventDate "2020.01.02"]
[EventType "swiss"]
[EventCountry "GER"]
[SourceTitle "playchess.com"]
[Source "ChessBase"]
[SourceQuality "1"]
[TimeControl "40/5400+30:1800+30"]

1. c4 {[%emt 0:00:00]} f5 {[%emt 0:00:00]} 2. Nc3 {[%emt 0:00:39]} Nf6 {[%emt 0:00:00]} 3. g3 {[%emt 0:01:49]} g6 {[%emt 0:01:32]} 4. Bg2 {[%emt 0:00:59]} Bg7 {[%emt 0:00:11]} 5. Nf3 {[%emt 0:04:00]} O-O {[%emt 0:00:17]} 6. O-O {[%emt 0:00:11]} d6 {[%emt 0:00:14]} 7. d3 {[%emt 0:03:58]} Nc6 {[%emt 0:01:15]} 8. Bd2 {[%emt 0:03:29]} e5 {[%emt 0:00:54]} 9. Rb1 {[%emt 0:01:47]} h6 {[%emt 0:01:32]} 10. b4 {[%emt 0:02:41]} g5 {[%emt 0:01:31]} 11. Ne1 {[%emt 0:05:29]} f4 {[%emt 0:07:15]} 12. b5 {[%emt 0:11:14]} Ne7 {[%emt 0:05:58]} 13. e3 {[%emt 0:01:15]} Ng6 {[%emt 0:17:32]} 14. Nd5 {[%emt 0:00:37]} Kh8 {[%emt 0:03:11]} 15. exf4 {[%emt 0:25:31]} exf4 {[%emt 0:05:18]} 16. Bc3 {[%emt 0:01:19]} Nxd5 {[%emt 0:08:36]} 17. Bxg7+ {[%emt 0:00:27]} Kxg7 {[%emt 0:00:05]} 18. Bxd5 {[%emt 0:00:14]} Bh3 {[%emt 0:03:59]} 19. Ng2 {[%emt 0:06:09]} Qf6 {[%emt 0:12:02]} 20. Re1 {[%emt 0:08:25]} fxg3 {[%emt 0:07:52]} 21. fxg3 {[%emt 0:00:08]} Qd4+ {[%emt 0:02:35]} 22. Kh1 {[%emt 0:00:09]} Ne5 {[%emt 0:03:11]} 23. Re4 {[%emt 0:03:35]} Qf2 {[%emt 0:13:06]} 24. Re2 {[%emt 0:00:21]} Qf6 {[%emt 0:00:15]} 25. Re1 {[%emt 0:03:30]} Ng4 {[%emt 0:01:28]} 26. Qd2 {[%emt 0:01:20]} Rae8 {[%emt 0:00:15]} 27. Be4 {[%emt 0:06:40]} Qd4 {[%emt 0:01:24]} 28. Qb2 {[%emt 0:00:42]} Nf2+ {[%emt 0:00:41]} 29. Kg1 {[%emt 0:00:32]} Qxb2 {[%emt 0:00:41]} 30. Rxb2 {[%emt 0:00:00]} Bxg2 {[%emt 0:00:51]} 31. Rxf2 {[%emt 0:00:23]} Bxe4 {[%emt 0:00:57]} 32. Rxe4 {[%emt 0:05:09]} Rxe4 {[%emt 0:00:09]} 33. Rxf8 {[%emt 0:00:51]} Rxc4 {[%emt 0:00:59]} 34. Rb8 {[%emt 0:01:46]} Rc1+ {[%emt 0:00:22]} 35. Kf2 {[%emt 0:00:16]} b6 {[%emt 0:00:03]} 36. Ke3 {[%emt 0:00:20]} Rc2 {[%emt 0:00:30]} 37. Rb7 {[%emt 0:00:23]} Kf6 {[%emt 0:00:19]} 38. h4 {[%emt 0:00:38]} gxh4 {[%emt 0:00:24]} 39. gxh4 {[%emt 0:00:02]} Rxa2 {[%emt 0:01:02]} 40. Rxc7 {[%emt 0:00:10]} Rb2 {[%emt 0:00:17]} 41. Rxa7 {[%emt 0:31:24]} Rxb5 {[%emt 0:30:14]} 42. Ra4 {[%emt 0:00:00]} Re5+ {[%emt 0:00:00]} 43. Kf3 {[%emt 0:00:00]} Ke6 {[%emt 0:00:00]} 44. Ra8 {[%emt 0:00:00]} Kd5 {[%emt 0:00:00]} 45. Rh8 {[%emt 0:00:00]} h5 {[%emt 0:00:00]} 46. Rb8 {[%emt 0:00:00]} Kc6 {[%emt 0:01:30]} 47. d4 {[%emt 0:00:00]} Ra5 {[%emt 0:00:09]} 48. Ke4 {[%emt 0:00:00]} b5 {[%emt 0:00:27]} 49. d5+ {[%emt 0:00:00]} Kc7 {[%emt 0:00:06]} 50. Rh8 {[%emt 0:00:00]} Ra4+ {[%emt 0:00:05]} 51. Kf5 {[%emt 0:00:00]} Rxh4 {[%emt 0:00:10]} 52. Rh7+ {[%emt 0:00:00]} Kb6 {[%emt 0:00:43]} 53. Ke6 {[%emt 0:00:00]} b4 {[%emt 0:00:23]} 54. Rh8 {[%emt 0:00:40]} Kc5 {[%emt 0:00:44]} 55. Rc8+ {[%emt 0:00:22]} Kd4 {[%emt 0:00:30]} 56. Kxd6 {[%emt 0:01:20]} b3 {[%emt 0:00:14]} 57. Rb8 {[%emt 0:00:47]} Kc3 {[%emt 0:00:06]} 58. Ke5 {[%emt 0:00:45]} b2 {[%emt 0:02:01]} 59. d6 {[%emt 0:01:00]} Rh1 {[%emt 0:00:37]} 60. d7 {[%emt 0:00:45]} Rd1 {[%emt 0:02:36]} 61. Rc8+ {[%emt 0:00:16]} Kb3 {[%emt 0:00:14]} 62. Rb8+ {[%emt 0:00:08]} Kc2 {[%emt 0:00:24]} 63. Rc8+ {[%emt 0:00:09]} Kb3 {[%emt 0:00:37]} 64. Rb8+ {[%emt 0:00:07]} Kc3 {[%emt 0:00:47]} 65. Rc8+ {[%emt 0:00:12]} 1/2-1/2

[Event "Niedersachsen-ch 2020"]
[Site "Verden-Aller"]
[Date "2020.01.03"]
[Round "3.12"]
[White "Frese, Immo"]
[Black "Eickhoff, Hermann"]
[Result "0-1"]
[ECO "A53"]
[WhiteElo "1697"]
[BlackElo "1785"]
[Annotator "NA RC"]
[PlyCount "62"]
[EventDate "2020.01.02"]
[EventType "swiss"]
[EventCountry "GER"]
[SourceTitle "playchess.com"]
[Source "ChessBase"]
[SourceQuality "1"]
[TimeControl "40/5400+30:1800+30"]

1. d4 {[%emt 0:00:00]} Nf6 {[%emt 0:00:15]} 2. c4 {[%emt 0:00:00]} d6 {[%emt 0:00:35]} 3. Nc3 {[%emt 0:00:12]} c6 {[%emt 0:00:53]} 4. e4 {[%emt 0:01:11]} Nbd7 {[%emt 0:01:53]} 5. Nf3 {[%emt 0:01:52]} e5 {[%emt 0:06:56]} 6. d5 {[%emt 0:02:44]} Nc5 {[%emt 0:03:00]} 7. Qc2 {[%emt 0:02:10]} Be7 {[%emt 0:06:37]} 8. h3 {[%emt 0:04:57]} a5 {[%emt 0:02:11]} 9. Be2 {[%emt 0:01:22]} Na6 {[%emt 0:03:41]} 10. a3 {[%emt 0:02:07]} Bd7 {[%emt 0:03:49]} 11. Be3 {[%emt 0:02:36]} cxd5 {[%emt 0:02:49]} 12. cxd5 {[%emt 0:02:16]} O-O {[%emt 0:03:19]} 13. O-O {[%emt 0:00:09]} Qc7 {[%emt 0:10:27]} 14. Rac1 {[%emt 0:05:06]} Rfc8 {[%emt 0:01:33]} 15. Qd3 {[%emt 0:08:04]} Nc5 {[%emt 0:04:15]} 16. Bxc5 {[%emt 0:01:28]} Qxc5 {[%emt 0:08:26]} 17. Nd2 {[%emt 0:11:13]} a4 {[%emt 0:09:22]} 18. Na2 {[%emt 0:02:32]} Qa7 {[%emt 0:04:25]} 19. Nb4 {[%emt 0:03:34]} Rc5 {[%emt 0:01:33]} 20. Qb1 {[%emt 0:07:15]} Rac8 {[%emt 0:01:45]} 21. Rc2 {[%emt 0:06:08]} Rxc2 {[%emt 0:01:08]} 22. Nxc2 {[%emt 0:00:09]} Qa5 {[%emt 0:01:04]} 23. Nb4 {[%emt 0:04:51]} Qc5 {[%emt 0:02:37]} 24. Rd1 {[%emt 0:04:56]} Bd8 {[%emt 0:04:27]} 25. Na2 {[%emt 0:04:49]} Bb6 {[%emt 0:00:51]} 26. Rf1 {[%emt 0:01:42]} Qc2 {[%emt 0:00:45]} 27. Qe1 {[%emt 0:08:24]} Ba5 {[%emt 0:02:40]} 28. Nb4 {[%emt 0:00:47]} Bxb4 {[%emt 0:02:22]} 29. axb4 {[%emt 0:00:02]} b5 {[%emt 0:02:30]} 30. f3 {[%emt 0:02:28]} Qxb2 {[%emt 0:01:23]} 31. f4 {[%emt 0:03:03]} Rc2 {[%emt 0:00:53]} 0-1

[Event "Niedersachsen-ch 2020"]
[Site "Verden-Aller"]
[Date "2020.01.03"]
[Round "4.2"]
[White "Abel, Dennes"]
[Black "Ewert, Hannes"]
[Result "1/2-1/2"]
[ECO "A40"]
[WhiteElo "2463"]
[BlackElo "2256"]
[Annotator "RC"]
[PlyCount "117"]
[EventDate "2020.01.02"]
[EventType "swiss"]
[EventCountry "GER"]
[SourceTitle "playchess.com"]
[Source "ChessBase"]
[SourceQuality "1"]
[TimeControl "40/5400+30:1800+30"]

1. d4 {[%emt 0:00:19]} Nf6 {[%emt 0:00:00]} 2. c4 {[%emt 0:00:06]} e6 {[%emt 0:00:00]} 3. g3 {[%emt 0:00:11]} Bb4+ {[%emt 0:00:48]} 4. Nd2 {[%emt 0:00:08]} O-O {[%emt 0:00:31]} 5. Bg2 {[%emt 0:01:12]} d5 {[%emt 0:00:10]} 6. Ngf3 {[%emt 0:00:29]} b6 {[%emt 0:02:58]} 7. O-O {[%emt 0:01:40]} Bb7 {[%emt 0:01:26]} 8. cxd5 {[%emt 0:01:27]} exd5 {[%emt 0:01:29]} 9. Ne5 {[%emt 0:04:53]} Bd6 {[%emt 0:05:31]} 10. Ndf3 {[%emt 0:00:56]} c5 {[%emt 0:05:43]} 11. b3 {[%emt 0:10:47]} Qe7 {[%emt 0:07:52]} 12. Bb2 {[%emt 0:01:25]} Nc6 {[%emt 0:02:07]} 13. Nxc6 {[%emt 0:03:30]} Bxc6 {[%emt 0:00:03]} 14. dxc5 {[%emt 0:01:22]} bxc5 {[%emt 0:00:10]} 15. Nh4 {[%emt 0:00:36]} Be5 {[%emt 0:04:34]} 16. Bxe5 {[%emt 0:02:04]} Qxe5 {[%emt 0:00:08]} 17. Qc2 {[%emt 0:01:01]} Nd7 {[%emt 0:06:51]} 18. Rac1 {[%emt 0:05:50]} Rac8 {[%emt 0:03:51]} 19. Rfd1 {[%emt 0:00:58]} Rfd8 {[%emt 0:08:28]} 20. Rd2 {[%emt 0:06:39]} Nb6 {[%emt 0:26:09]} 21. Qxc5 {[%emt 0:10:31]} Bb5 {[%emt 0:00:37]} 22. Qa3 {[%emt 0:00:05]} Rxc1+ {[%emt 0:00:28]} 23. Qxc1 {[%emt 0:00:05]} Bxe2 {[%emt 0:00:24]} 24. Qe1 {[%emt 0:02:22]} Re8 {[%emt 0:00:38]} 25. Bf1 {[%emt 0:01:00]} Bxf1 {[%emt 0:03:45]} 26. Qxe5 {[%emt 0:00:17]} Rxe5 {[%emt 0:00:04]} 27. Kxf1 {[%emt 0:00:05]} Kf8 {[%emt 0:02:41]} 28. Nf3 {[%emt 0:00:07]} Re8 {[%emt 0:03:06]} 29. Rc2 {[%emt 0:04:52]} Rc8 {[%emt 0:03:09]} 30. Rxc8+ {[%emt 0:00:06]} Nxc8 {[%emt 0:00:01]} 31. Ke2 {[%emt 0:00:43]} Ke7 {[%emt 0:03:44]} 32. Nd4 {[%emt 0:00:51]} g6 {[%emt 0:02:34]} 33. Kd3 {[%emt 0:01:47]} Kd6 {[%emt 0:00:42]} 34. b4 {[%emt 0:02:07]} a6 {[%emt 0:02:15]} 35. g4 {[%emt 0:05:07]} Nb6 {[%emt 0:02:22]} 36. f4 {[%emt 0:00:41]} f6 {[%emt 0:01:06]} 37. h4 {[%emt 0:00:35]} Nc4 {[%emt 0:00:33]} 38. Nb3 {[%emt 0:04:20]} Kc6 {[%emt 0:00:34]} 39. Kd4 {[%emt 0:00:27]} Kb5 {[%emt 0:01:11]} 40. Nc5 {[%emt 0:01:48]} Kxb4 {[%emt 0:00:45]} 41. Nxa6+ {[%emt 0:30:49]} Ka3 {[%emt 0:00:19]} 42. g5 {[%emt 0:00:00]} fxg5 {[%emt 0:04:03]} 43. hxg5 {[%emt 0:00:00]} Nd6 {[%emt 0:02:59]} 44. Nc7 {[%emt 0:00:00]} h6 {[%emt 0:19:58]} 45. gxh6 {[%emt 0:00:00]} Nf5+ {[%emt 0:00:05]} 46. Kxd5 {[%emt 0:00:00]} Nxh6 {[%emt 0:00:05]} 47. Ke6 {[%emt 0:00:00]} Nf5 {[%emt 0:00:41]} 48. Nd5 {[%emt 0:00:00]} Kxa2 {[%emt 0:01:32]} 49. Kf6 {[%emt 0:00:00]} Ng3 {[%emt 0:00:42]} 50. Kxg6 {[%emt 0:00:00]} Kb3 {[%emt 0:00:27]} 51. Kg5 {[%emt 0:00:00]} Kc4 {[%emt 0:00:41]} 52. Ne7 {[%emt 0:00:00]} Kc5 {[%emt 0:00:41]} 53. Kg4 {[%emt 0:00:00]} Ne4 {[%emt 0:00:36]} 54. Kf5 {[%emt 0:00:00]} Ng3+ {[%emt 0:01:16]} 55. Ke5 {[%emt 0:00:00]} Kb6 {[%emt 0:01:19]} 56. Kd6 {[%emt 0:00:00]} Ne2 {[%emt 0:01:54]} 57. Nd5+ {[%emt 0:00:00]} Kb7 {[%emt 0:00:10]} 58. f5 {[%emt 0:00:00]} Ng3 {[%emt 0:00:02]} 59. f6 {[%emt 0:00:00]} 1/2-1/2

[Event "Niedersachsen-ch 2020"]
[Site "Verden-Aller"]
[Date "2020.01.03"]
[Round "4.3"]
[White "Schmidt, Dennis"]
[Black "Schulze, Torben"]
[Result "0-1"]
[ECO "B30"]
[WhiteElo "2043"]
[BlackElo "2266"]
[Annotator "ChessBase"]
[PlyCount "158"]
[EventDate "2020.01.02"]
[EventType "swiss"]
[EventCountry "GER"]
[SourceTitle "playchess.com"]
[Source "ChessBase"]
[SourceQuality "1"]
[TimeControl "40/5400+30:1800+30"]

1. e4 c5 {[%emt 0:05:23]} 2. Nf3 {[%emt 0:00:00]} Nc6 {[%emt 0:00:07]} 3. d3 {[%emt 0:00:29]} g6 {[%emt 0:00:08]} 4. g3 {[%emt 0:00:07]} Bg7 {[%emt 0:00:01]} 5. Bg2 {[%emt 0:00:12]} e5 {[%emt 0:00:05]} 6. O-O {[%emt 0:02:09]} Nge7 {[%emt 0:00:07]} 7. c3 {[%emt 0:01:39]} O-O {[%emt 0:02:07]} 8. Be3 {[%emt 0:02:12]} b6 {[%emt 0:02:01]} 9. Qd2 {[%emt 0:21:34]} d6 {[%emt 0:13:41]} 10. Bh6 {[%emt 0:03:50]} Qc7 {[%emt 0:01:02]} 11. Bxg7 {[%emt 0:00:59]} Kxg7 {[%emt 0:00:02]} 12. Na3 {[%emt 0:05:46]} a6 {[%emt 0:06:06]} 13. d4 {[%emt 0:09:52]} Bg4 {[%emt 0:00:43]} 14. d5 {[%emt 0:01:59]} Na7 {[%emt 0:02:24]} 15. Nh4 {[%emt 0:07:58]} Bd7 {[%emt 0:13:51]} 16. f4 {[%emt 0:00:55]} f6 {[%emt 0:00:27]} 17. Rf2 {[%emt 0:02:27]} Rae8 {[%emt 0:01:49]} 18. Raf1 {[%emt 0:01:00]} Ng8 {[%emt 0:02:02]} 19. Nc2 {[%emt 0:03:47]} Qd8 {[%emt 0:07:58]} 20. fxe5 {[%emt 0:18:16]} fxe5 {[%emt 0:00:10]} 21. Qe2 {[%emt 0:01:30]} b5 {[%emt 0:03:29]} 22. b4 {[%emt 0:00:56]} cxb4 {[%emt 0:01:54]} 23. cxb4 {[%emt 0:00:17]} Nc8 {[%emt 0:01:08]} 24. Ne3 {[%emt 0:04:10]} Nf6 {[%emt 0:03:53]} 25. h3 {[%emt 0:05:10]} Nb6 {[%emt 0:01:37]} 26. Kh2 {[%emt 0:01:05]} Qc8 {[%emt 0:03:03]} 27. g4 {[%emt 0:01:19]} h6 {[%emt 0:01:33]} 28. Qd2 {[%emt 0:02:09]} Nh7 {[%emt 0:00:28]} 29. Nf3 {[%emt 0:00:34]} Qd8 {[%emt 0:06:56]} 30. Qb2 {[%emt 0:01:43]} Qf6 {[%emt 0:05:25]} 31. Ne1 {[%emt 0:00:39]} Qg5 {[%emt 0:01:15]} 32. Qe2 {[%emt 0:00:23]} Qd8 {[%emt 0:01:08]} 33. Kg3 {[%emt 0:00:24]} Rxf2 {[%emt 0:01:23]} 34. Rxf2 {[%emt 0:00:13]} Rf8 {[%emt 0:00:27]} 35. Rxf8 {[%emt 0:00:27]} Kxf8 {[%emt 0:01:58]} 36. Qf2+ {[%emt 0:00:29]} Kg7 {[%emt 0:00:03]} 37. h4 {[%emt 0:00:36]} Qf6 {[%emt 0:01:27]} 38. Qxf6+ {[%emt 0:00:40]} Nxf6 {[%emt 0:01:24]} 39. Bf3 {[%emt 0:00:17]} Na4 {[%emt 0:00:38]} 40. g5 {[%emt 0:00:51]} hxg5 {[%emt 0:08:48]} 41. hxg5 {[%emt 0:01:03]} Nh7 {[%emt 0:00:47]} 42. Kh4 {[%emt 0:00:25]} Nc3 {[%emt 0:01:06]} 43. a3 {[%emt 0:00:40]} Kf7 {[%emt 0:03:30]} 44. Nd3 {[%emt 0:06:42]} Nb1 {[%emt 0:02:29]} 45. Nc2 {[%emt 0:02:38]} Nd2 {[%emt 0:00:41]} 46. Bg2 {[%emt 0:00:22]} Bc8 {[%emt 0:00:25]} 47. Nc1 {[%emt 0:05:52]} Nf8 {[%emt 0:02:02]} 48. Ne2 {[%emt 0:01:47]} Nd7 {[%emt 0:00:44]} 49. Nc3 {[%emt 0:00:40]} Nb6 {[%emt 0:00:31]} 50. Kg3 {[%emt 0:01:06]} Nb3 {[%emt 0:07:33]} 51. Bf1 {[%emt 0:02:16]} Bd7 {[%emt 0:01:45]} 52. Bd3 {[%emt 0:02:00]} Ke7 {[%emt 0:00:50]} 53. Ne3 {[%emt 0:01:58]} Nd4 {[%emt 0:01:06]} 54. Bf1 {[%emt 0:01:13]} Na8 {[%emt 0:01:04]} 55. Bd3 {[%emt 0:00:54]} Nc7 {[%emt 0:00:04]} 56. Ne2 {[%emt 0:01:55]} Nb3 {[%emt 0:02:44]} 57. Ng4 {[%emt 0:00:52]} Na8 {[%emt 0:01:02]} 58. Ne3 {[%emt 0:01:33]} Nb6 {[%emt 0:00:20]} 59. Nc3 {[%emt 0:00:30]} Nd4 {[%emt 0:00:59]} 60. Bf1 {[%emt 0:01:47]} Na8 {[%emt 0:01:16]} 61. Bd3 {[%emt 0:00:40]} Nc7 {[%emt 0:00:01]} 62. Ne2 {[%emt 0:00:28]} Nb3 {[%emt 0:00:40]} 63. Ng4 {[%emt 0:00:16]} Ne8 {[%emt 0:01:03]} 64. Ne3 {[%emt 0:04:11]} Ng7 {[%emt 0:01:48]} 65. Ng2 {[%emt 0:00:35]} Kf7 {[%emt 0:00:25]} 66. Kh4 {[%emt 0:00:34]} Nd2 {[%emt 0:00:28]} 67. Ne1 {[%emt 0:00:51]} Nh5 {[%emt 0:00:41]} 68. Bc2 {[%emt 0:00:38]} Nc4 {[%emt 0:01:04]} 69. a4 {[%emt 0:00:30]} bxa4 {[%emt 0:00:44]} 70. Nc3 {[%emt 0:00:04]} a3 {[%emt 0:00:44]} 71. Bb3 {[%emt 0:00:12]} Nd2 {[%emt 0:00:50]} 72. Bd1 {[%emt 0:00:37]} Nf4 {[%emt 0:00:44]} 73. Nc2 {[%emt 0:00:25]} Nc4 {[%emt 0:04:11]} 74. Kg3 {[%emt 0:00:38]} Bb5 {[%emt 0:01:12]} 75. Bg4 {[%emt 0:00:31]} Ke7 {[%emt 0:00:45]} 76. Bc8 {[%emt 0:00:28]} Kd8 {[%emt 0:01:39]} 77. Nxb5 {[%emt 0:00:55]} axb5 {[%emt 0:00:38]} 78. Ba6 {[%emt 0:00:24]} a2 {[%emt 0:00:06]} 79. Bxb5 {[%emt 0:00:19]} Na3 {[%emt 0:00:01]} 0-1

[Event "Niedersachsen-ch 2020"]
[Site "Verden-Aller"]
[Date "2020.01.03"]
[Round "4.4"]
[White "Hoerstmann, Rudi"]
[Black "Ermel, Dirk"]
[Result "1/2-1/2"]
[ECO "E91"]
[WhiteElo "2241"]
[BlackElo "2125"]
[Annotator "NA"]
[PlyCount "108"]
[EventDate "2020.01.02"]
[EventType "swiss"]
[EventCountry "GER"]
[SourceTitle "playchess.com"]
[Source "ChessBase"]
[SourceQuality "1"]
[TimeControl "40/5400+30:1800+30"]

1. Nf3 {[%emt 0:00:59]} Nf6 {[%emt 0:00:00]} 2. c4 {[%emt 0:00:17]} g6 {[%emt 0:01:39]} 3. Nc3 {[%emt 0:00:26]} Bg7 {[%emt 0:00:21]} 4. e4 {[%emt 0:01:42]} d6 {[%emt 0:00:39]} 5. d4 {[%emt 0:00:09]} O-O {[%emt 0:01:10]} 6. Be2 {[%emt 0:00:04]} Nbd7 {[%emt 0:04:02]} 7. O-O {[%emt 0:00:15]} e5 {[%emt 0:00:43]} 8. Qc2 {[%emt 0:00:05]} Re8 {[%emt 0:02:40]} 9. Rd1 {[%emt 0:00:43]} exd4 {[%emt 0:04:22]} 10. Nxd4 {[%emt 0:00:10]} Nc5 {[%emt 0:00:52]} 11. f3 {[%emt 0:00:57]} c6 {[%emt 0:18:55]} 12. Bg5 {[%emt 0:09:16]} h6 {[%emt 0:12:29]} 13. Be3 {[%emt 0:00:38]} Qe7 {[%emt 0:03:41]} 14. Re1 {[%emt 0:17:39]} Bd7 {[%emt 0:07:39]} 15. Rad1 {[%emt 0:02:27]} Rad8 {[%emt 0:00:14]} 16. Qd2 {[%emt 0:10:05]} Kh7 {[%emt 0:00:41]} 17. Bf1 {[%emt 0:00:58]} Bc8 {[%emt 0:13:32]} 18. b4 {[%emt 0:07:55]} Ne6 {[%emt 0:02:44]} 19. Nb3 {[%emt 0:00:08]} b6 {[%emt 0:02:29]} 20. a3 {[%emt 0:03:01]} Qb7 {[%emt 0:02:06]} 21. Qc2 {[%emt 0:10:07]} d5 {[%emt 0:04:19]} 22. Bf2 {[%emt 0:19:43]} dxe4 {[%emt 0:01:12]} 23. Nxe4 {[%emt 0:01:28]} Nxe4 {[%emt 0:00:56]} 24. Qxe4 {[%emt 0:00:10]} Bc3 {[%emt 0:04:27]} 25. Rxd8 {[%emt 0:02:26]} Rxd8 {[%emt 0:00:09]} 26. Re2 {[%emt 0:02:34]} Qc7 {[%emt 0:01:27]} 27. c5 {[%emt 0:00:54]} b5 {[%emt 0:01:20]} 28. Bg3 {[%emt 0:01:22]} Qd7 {[%emt 0:01:28]} 29. Bd6 {[%emt 0:00:09]} f5 {[%emt 0:02:00]} 30. Qd3 {[%emt 0:01:32]} Qg7 {[%emt 0:00:09]} 31. Qc2 {[%emt 0:01:12]} Re8 {[%emt 0:01:43]} 32. Kh1 {[%emt 0:01:56]} Bd7 {[%emt 0:00:28]} 33. Qd3 {[%emt 0:02:00]} Bf6 {[%emt 0:00:36]} 34. f4 {[%emt 0:00:43]} Nd4 {[%emt 0:01:24]} 35. Nxd4 {[%emt 0:01:46]} Bxd4 {[%emt 0:00:06]} 36. Rxe8 {[%emt 0:00:48]} Bxe8 {[%emt 0:00:01]} 37. Be2 {[%emt 0:00:20]} Bf6 {[%emt 0:03:18]} 38. Bf3 {[%emt 0:00:26]} Qf7 {[%emt 0:01:08]} 39. Be5 {[%emt 0:01:08]} Qe6 {[%emt 0:00:38]} 40. Qd6 {[%emt 0:00:34]} Qxd6 {[%emt 0:01:16]} 41. cxd6 {[%emt 0:30:39]} Bd8 {[%emt 0:02:55]} 42. Kg1 {[%emt 0:00:00]} Kg8 {[%emt 0:00:48]} 43. Kf2 {[%emt 0:00:00]} Kf7 {[%emt 0:00:55]} 44. Ke3 {[%emt 0:00:00]} Ke6 {[%emt 0:01:08]} 45. Bd1 {[%emt 0:00:00]} Bb6+ {[%emt 0:01:31]} 46. Kd3 {[%emt 0:00:00]} c5 {[%emt 0:02:32]} 47. Bf3 {[%emt 0:00:00]} c4+ {[%emt 0:00:43]} 48. Kd2 {[%emt 0:00:00]} a5 {[%emt 0:02:26]} 49. Bb7 {[%emt 0:00:00]} axb4 {[%emt 0:01:10]} 50. axb4 {[%emt 0:00:00]} Ba7 {[%emt 0:01:30]} 51. Bf3 {[%emt 0:00:00]} h5 {[%emt 0:00:42]} 52. g3 {[%emt 0:00:02]} Bd7 {[%emt 0:00:46]} 53. Kc3 {[%emt 0:01:50]} Bb8 {[%emt 0:10:52]} 54. Kd4 {[%emt 0:00:12]} Ba7+ {[%emt 0:00:21] Ke4 Kxe5+} 1/2-1/2